bitfinex/quotes_SOLUSD_20240624
["timestamp","ask_amount","ask_price","bid_price","bid_amount"]
[1719224210096,1.71198119,127.42,127.39,10.0]
[1719224210322,1.71198119,127.42,127.37,10.0]
[1719224213305,1.71198119,127.42,127.38,100.0]
[1719224213604,1.71198119,127.42,127.37,10.0]
[1719224215808,1.71198119,127.42,127.38,100.0]
[1719224216099,1.71198119,127.42,127.37,10.0]
[1719224216515,1.71198119,127.42,127.38,100.0]
[1719224216901,1.71198119,127.42,127.37,10.0]
[1719224217615,1.71198119,127.42,127.39,10.0]
[1719224217802,1.71198119,127.42,127.38,100.0]
[1719224218311,1.71198119,127.42,127.39,10.0]
[1719224219192,0.78499098,127.4,127.39,10.0]
[1719224219615,0.78499098,127.4,127.38,100.0]
[1719224219992,0.78499098,127.4,127.39,10.0]
[1719224220407,0.78499098,127.4,127.38,100.0]
[1719224220905,0.78499098,127.4,127.39,10.0]
[1719224221821,0.78499098,127.4,127.38,100.0]
[1719224222694,0.78499098,127.4,127.39,10.0]
[1719224223186,0.78499098,127.4,127.39,110.0]
[1719224223499,0.78499098,127.4,127.39,10.0]
[1719224224431,0.78499098,127.4,127.38,200.0]
[1719224224798,0.78499098,127.4,127.37,10.0]
[1719224225000,0.78499098,127.4,127.37,110.0]
[1719224225712,0.78499098,127.4,127.37,10.0]
[1719224226824,0.78499098,127.4,127.37,110.0]
[1719224227548,0.78499098,127.4,127.39,100.0]
[1719224227833,0.78499098,127.4,127.39,217.8499]
[1719224228211,0.78499098,127.4,127.39,210.0]
[1719224230007,0.78499098,127.4,127.39,10.0]
[1719224230530,0.78499098,127.4,127.37,100.0]
[1719224230721,0.78499098,127.4,127.36,10.0]
[1719224231809,0.17,127.39,127.31,10.0]
[1719224232120,0.78499098,127.4,127.32,100.0]
[1719224232629,0.78499098,127.4,127.33,10.0]
[1719224233336,0.78499098,127.4,127.33,100.0]
[1719224233514,0.78499098,127.4,127.33,110.0]
[1719224233837,0.78499098,127.4,127.33,100.0]
[1719224234048,8.63429098,127.4,127.31,210.0]
[1719224234210,0.34,127.39,127.31,110.0]
[1719224234607,2.36249962,127.4,127.31,110.0]
[1719224234827,0.78499098,127.4,127.34,100.0]
[1719224235231,0.78499098,127.4,127.32,100.0]
[1719224235422,0.34,127.39,127.32,100.0]
[1719224235638,8.1901,127.39,127.31,10.0]
[1719224235929,0.34,127.39,127.31,10.0]
[1719224236236,0.34,127.39,127.31,110.0]
[1719224236547,8.19,127.39,127.32,0.86952199]
[1719224236747,0.34,127.39,127.32,0.86952199]
[1719224236944,8.19,127.39,127.32,0.86952199]
[1719224237113,8.19,127.39,127.31,10.0]
[1719224237313,7.8505,127.38,127.3,100.0]
[1719224237609,1.91750864,127.39,127.3,100.0]
[1719224237809,0.34,127.39,127.3,100.0]
[1719224238025,8.1899,127.39,127.3,100.0]
[1719224238815,0.34,127.39,127.31,10.0]
[1719224239224,0.78499098,127.33,127.31,10.0]
[1719224239818,0.78499098,127.33,127.3,100.0]
[1719224240637,0.78499098,127.33,127.29,10.0]
[1719224242358,0.78499098,127.33,127.32,100.0]
[1719224242658,0.78499098,127.33,127.32,110.0]
[1719224242864,0.78499098,127.33,127.3,210.0]
[1719224243731,0.78499098,127.33,127.32,100.0]
[1719224244257,0.78499098,127.33,127.3,210.0]
[1719224244551,0.78499098,127.33,127.3,110.0]
[1719224244740,0.78499098,127.33,127.3,10.0]
[1719224246746,0.78499098,127.33,127.31,100.0]
[1719224246926,0.78499098,127.33,127.32,110.0]
[1719224247125,0.78499098,127.33,127.32,162.8542]
[1719224247361,1.71198119,127.42,127.37,100.0]
[1719224247726,1.71198119,127.42,127.39,100.0]
[1719224247924,1.71198119,127.42,127.39,110.0]
[1719224248169,1.71198119,127.42,127.39,210.0]
[1719224248361,1.71198119,127.42,127.41,210.0]
[1719224248725,1.71198119,127.42,127.41,255.0]
[1719224248929,1.71198119,127.42,127.41,155.0]
[1719224249224,1.71198119,127.42,127.41,110.0]
[1719224249651,1.71198119,127.42,127.41,155.0]
[1719224249932,1.71198119,127.42,127.41,110.0]
[1719224250136,0.73424843,127.42,127.41,110.0]
[1719224250553,0.73424843,127.42,127.41,155.0]
[1719224250751,0.73424843,127.42,127.41,10.0]
[1719224251163,0.73424843,127.42,127.41,11.56706286]
[1719224251463,0.73424843,127.42,127.41,10.0]
[1719224252829,0.73424843,127.42,127.41,5.0]
[1719224254648,0.73424843,127.42,127.41,105.0]
[1719224255237,0.73424843,127.42,127.41,112.8486]
[1719224255569,0.73424843,127.42,127.41,113.1886]
[1719224255735,0.73424843,127.42,127.41,105.34]
[1719224256064,0.73424843,127.42,127.41,105.0]
[1719224256737,0.73424843,127.42,127.41,5.0]
[1719224258546,0.73424843,127.42,127.41,105.0]
[1719224259240,1.51911618,127.42,127.41,105.0]
[1719224259548,1.51911618,127.42,127.39,100.0]
[1719224260240,1.51911618,127.42,127.38,5.0]
[1719224260445,1.51911618,127.42,127.39,100.0]
[1719224262275,1.51911618,127.42,127.38,5.0]
[1719224263379,1.51911618,127.42,127.36,100.0]
[1719224263543,7.8493,127.4,127.33,100.0]
[1719224266073,9.36741618,127.42,127.33,100.0]
[1719224266241,8.0187,127.41,127.33,100.0]
[1719224266441,1.57750864,127.4,127.3,12.8462]
[1719224266641,7.8514,127.37,127.3,12.8462]
[1719224266842,7.8507,127.38,127.3,112.8462]
[1719224267041,0.17,127.39,127.3,112.8462]
[1719224267042,0.17,127.37,127.3,112.8462]
[1719224267269,9.42810864,127.38,127.3,112.8462]
[1719224267475,0.17,127.38,127.3,105.0]
[1719224267655,9.34505303,127.42,127.33,100.0]
[1719224267853,9.34505303,127.42,127.33,105.0]
[1719224267854,1.57750864,127.41,127.33,105.0]
[1719224268193,1.57750864,127.41,127.31,105.0]
[1719224268363,7.8498,127.4,127.31,105.0]
[1719224268547,7.8495,127.4,127.31,105.0]
[1719224269180,9.34505303,127.42,127.35,100.0]
[1719224269554,9.34505303,127.42,127.32,100.0]
[1719224269555,17.19315303,127.42,127.33,100.0]
[1719224269775,7.8487,127.41,127.33,100.0]
[1719224270287,9.42620864,127.41,127.33,100.0]
[1719224270590,9.42640864,127.41,127.33,100.0]
[1719224270877,9.34505303,127.42,127.34,100.0]
[1719224271081,9.34505303,127.42,127.36,105.0]
[1719224271279,1.51911618,127.42,127.36,100.0]
[1719224271452,1.51911618,127.42,127.34,100.0]
[1719224271786,1.51911618,127.42,127.36,105.0]
[1719224272353,1.51911618,127.42,127.36,103.0]
[1719224272680,1.51911618,127.42,127.38,3.0]
[1719224272972,1.51911618,127.42,127.38,103.0]
[1719224273270,1.51911618,127.42,127.4,3.0]
[1719224273670,1.51911618,127.42,127.4,103.0]
[1719224279457,1.51911618,127.42,127.38,103.0]
[1719224280364,1.51911618,127.42,127.38,3.0]
[1719224280682,1.51911618,127.42,127.38,103.0]
[1719224280986,1.51911618,127.42,127.38,3.0]
[1719224282685,7.8493,127.4,127.33,3.0]
[1719224282868,7.8489,127.41,127.33,3.0]
[1719224283226,1.51911618,127.42,127.34,100.0]
[1719224283357,9.36741618,127.42,127.34,100.0]
[1719224283563,1.51911618,127.42,127.36,100.0]
[1719224284181,1.51911618,127.42,127.4,3.0]
[1719224284386,1.51911618,127.42,127.41,100.0]
[1719224284955,1.51911618,127.42,127.38,100.0]
[1719224285162,1.51911618,127.42,127.36,103.0]
[1719224285680,1.51911618,127.42,127.36,3.0]
[1719224285681,9.36741618,127.42,127.36,3.0]
[1719224286085,1.51911618,127.42,127.36,3.0]
[1719224286676,7.8499,127.39,127.36,3.0]
[1719224286874,1.51911618,127.42,127.34,103.0]
[1719224287088,7.8496,127.4,127.34,3.0]
[1719224287390,1.51911618,127.42,127.34,103.0]
[1719224287391,7.8481,127.42,127.34,103.0]
[1719224287585,10.35269905,127.46,127.36,100.0]
[1719224287778,10.35269905,127.46,127.39,3.0]
[1719224287984,10.40976079,127.46,127.39,3.0]
[1719224288187,2.50689905,127.46,127.4,100.0]
[1719224288372,2.50689905,127.46,127.39,3.0]
[1719224288568,1.44471493,127.46,127.41,100.0]
[1719224288992,1.44471493,127.46,127.41,103.0]
[1719224289173,1.44471493,127.46,127.43,3.0]
[1719224289775,1.44471493,127.46,127.41,103.0]
[1719224290273,9.29061493,127.46,127.39,3.0]
[1719224291402,1.44471493,127.46,127.41,103.0]
[1719224292588,1.44471493,127.46,127.43,3.0]
[1719224293102,1.44471493,127.46,127.37,100.0]
[1719224293398,1.44471493,127.46,127.36,19.5316]
[1719224293399,7.8472,127.44,127.36,3.0]
[1719224293601,1.57750864,127.43,127.36,3.0]
[1719224293802,7.8486,127.41,127.36,3.0]
[1719224294103,8.0182,127.42,127.36,3.0]
[1719224294408,0.17,127.42,127.36,3.0]
[1719224294703,7.8475,127.43,127.36,3.0]
[1719224294916,7.8474,127.43,127.36,3.0]
[1719224295581,7.8481,127.42,127.36,3.0]
[1719224295978,7.8495,127.4,127.34,3.0]
[1719224296182,7.8489,127.41,127.33,106.0817]
[1719224296391,7.8489,127.41,127.33,100.0]
[1719224296592,7.8481,127.42,127.33,100.0]
[1719224296880,0.17,127.41,127.33,100.0]
[1719224297093,0.17,127.41,127.34,3.0]
[1719224297303,0.17,127.41,127.33,100.0]
[1719224297681,0.17,127.41,127.34,3.0]
[1719224298093,8.0189,127.41,127.33,100.0]
[1719224298683,8.0189,127.41,127.32,3.0]
[1719224298684,0.17,127.41,127.32,3.0]
[1719224298898,7.8501,127.39,127.32,3.0]
[1719224299209,0.78542256,127.33,127.32,3.0]
[1719224299580,0.78542256,127.33,127.3,3.0]
[1719224299979,0.78542256,127.33,127.28,3.0]
[1719224300590,0.78542256,127.33,127.21,100.0]
[1719224300905,0.34,127.32,127.21,100.0]
[1719224301203,1.91750864,127.32,127.19,103.0]
[1719224301407,1.91750864,127.32,127.21,3.0]
[1719224301578,1.91750864,127.32,127.22,100.0]
[1719224301779,1.91750864,127.32,127.22,103.0]
[1719224302013,1.91750864,127.32,127.22,100.0]
[1719224302183,1.91750864,127.32,127.21,3.0]
[1719224302512,1.91750864,127.32,127.23,3.0]
[1719224302679,1.91750864,127.32,127.21,3.0]
[1719224302883,46.91750864,127.32,127.21,3.0]
[1719224303081,46.91750864,127.32,127.2,100.0]
[1719224303082,7.8566,127.29,127.2,100.0]
[1719224303385,8.1968,127.28,127.21,3.0]
[1719224303586,0.34,127.28,127.21,3.0]
[1719224303816,8.1967,127.28,127.21,3.0]
[1719224303982,1.57750864,127.27,127.2,100.0]
[1719224304318,9.60430864,127.28,127.2,100.0]
[1719224304905,8.0276,127.27,127.2,100.0]
[1719224305081,0.17,127.27,127.2,100.0]
[1719224305281,8.0274,127.27,127.2,100.0]
[1719224306106,0.17,127.26,127.2,100.0]
[1719224306404,0.17,127.27,127.2,100.0]
[1719224306711,9.77480864,127.27,127.2,100.0]
[1719224306897,7.8591,127.25,127.19,3.0]
[1719224307098,7.8591,127.25,127.17,3.0]
[1719224307290,7.8582,127.26,127.18,100.0]
[1719224307499,0.17,127.25,127.17,3.0]
[1719224307903,8.1985,127.25,127.17,3.0]
[1719224308294,0.17,127.25,127.17,103.0]
[1719224308607,0.34,127.25,127.17,103.0]
[1719224308807,8.1988,127.25,127.17,103.0]
[1719224309187,1.57750864,127.24,127.17,3.0]
[1719224309383,8.2003,127.23,127.14,100.0]
[1719224309607,8.2003,127.23,127.13,3.0]
[1719224309608,7.8615,127.21,127.13,3.0]
[1719224309791,8.0317,127.2,127.13,3.0]
[1719224309995,7.8613,127.21,127.13,3.0]
[1719224310188,1.74750864,127.2,127.13,3.0]
[1719224310393,0.17,127.19,127.13,3.0]
[1719224310605,9.61000864,127.19,127.13,3.0]
[1719224310807,0.17,127.2,127.12,100.0]
[1719224311116,0.34,127.2,127.13,3.0]
[1719224311497,1.74750864,127.21,127.13,3.0]
[1719224311697,8.0314,127.21,127.13,3.0]
[1719224311906,9.60950864,127.2,127.13,3.0]
[1719224312213,0.17,127.19,127.13,3.0]
[1719224312513,1.74750864,127.19,127.13,3.0]
[1719224312690,0.17,127.19,127.13,3.0]
[1719224312887,8.2024,127.19,127.13,3.0]
[1719224313099,0.34,127.19,127.1,103.0]
[1719224313393,9.77980864,127.19,127.1,100.0]
[1719224313596,7.8643,127.16,127.08,103.0]
[1719224313809,9.78000864,127.19,127.1,100.0]
[1719224314001,1.91750864,127.19,127.1,103.0]
[1719224314310,0.34,127.19,127.08,103.0]
[1719224314512,19.66,127.17,127.08,3.0]
[1719224314715,1.91750864,127.16,127.08,3.0]
[1719224315588,7.56838319,127.21,127.1,100.0]
[1719224315801,46.57750864,127.2,127.08,103.0]
[1719224316015,7.8641,127.16,127.1,3.0]
[1719224316319,8.0347,127.15,127.08,3.0]
[1719224316495,8.0358,127.14,127.08,3.0]
[1719224316899,8.0363,127.13,127.08,3.0]
[1719224317099,0.17,127.13,127.04,3.0]
[1719224317309,0.17,127.13,127.03,200.0]
[1719224317514,0.17,127.13,127.06,100.0]
[1719224317821,0.17,127.13,127.05,3.0]
[1719224318000,1.74750864,127.13,127.05,3.0]
[1719224318201,0.17,127.12,127.04,100.0]
[1719224318516,0.17,127.12,127.03,3.0]
[1719224318731,7.8692,127.08,127.01,3.0]
[1719224318928,1.74750864,127.12,126.99,100.0]
[1719224318929,7.8697,127.07,126.99,103.0]
[1719224319092,0.78542256,127.0,126.99,103.0]
[1719224322617,0.78542256,127.0,126.99,3.0]
[1719224323725,0.78542256,127.0,126.95,216.1413]
[1719224323927,0.78542256,127.0,126.96,3.0]
[1719224324229,0.78542256,127.0,126.96,103.0]
[1719224324400,0.78542256,127.0,126.96,3.0]
[1719224324603,0.78542256,127.0,126.98,3.0]
[1719224326203,0.78542256,127.0,126.96,3.0]
[1719224326400,0.78542256,127.0,126.98,103.0]
[1719224326796,0.78542256,127.0,126.98,210.8752]
[1719224327001,0.78542256,127.0,126.98,103.0]
[1719224327218,0.78542256,127.0,126.99,100.0]
[1719224327419,0.78542256,127.0,126.99,107.8746]
[1719224327608,1.57750864,127.12,127.04,100.0]
[1719224327806,0.7852,127.14,127.06,3.0]
[1719224328014,0.7852,127.14,127.08,3.0]
[1719224328309,0.7852,127.14,127.06,3.0]
[1719224328310,16.28884745,127.14,127.06,3.0]
[1719224328625,1.57750864,127.13,127.04,103.0]
[1719224328926,1.57750864,127.13,127.07,3.0]
[1719224329123,1.57750864,127.13,127.04,100.0]
[1719224329299,7.8679,127.1,127.03,3.0]
[1719224329800,0.34,127.09,127.03,3.0]
[1719224330199,8.2087,127.09,127.03,3.0]
[1719224331129,1.57750864,127.08,127.0,3.0]
[1719224331307,7.8705,127.06,127.0,3.0]
[1719224331505,1.57750864,127.05,127.0,3.0]
[1719224331806,19.6804,127.03,126.92,100.0]
[1719224332024,1.1252,127.04,126.92,100.0]
[1719224332025,1.57750864,127.02,126.92,100.0]
[1719224332220,0.17,127.01,126.92,100.0]
[1719224332407,0.17,127.01,126.93,3.0]
[1719224332726,1.74750864,127.01,126.95,3.0]
[1719224332927,7.8704,127.06,126.97,3.0]
[1719224333237,8.0429,127.04,126.97,3.0]
[1719224333413,8.0429,127.04,126.97,103.0]
[1719224333611,0.17,127.03,126.99,3.0]
[1719224333834,9.617309,127.05,126.99,3.0]
[1719224334134,0.17,127.05,126.99,3.0]
[1719224334307,0.34,127.05,126.99,3.0]
[1719224334506,8.2109,127.05,126.99,3.0]
[1719224334706,0.34,127.05,126.99,3.0]
[1719224335323,7.8718,127.04,126.97,3.0]
[1719224335507,0.17,127.03,126.97,3.0]
[1719224335717,0.34,127.03,126.97,3.0]
[1719224335917,0.17,127.03,126.97,3.0]
[1719224336120,15.572685,127.06,126.97,103.0]
[1719224336423,7.871,127.05,126.97,3.0]
[1719224336635,9.27979364,127.06,126.97,103.0]
[1719224336836,17.15019364,127.06,126.99,3.0]
[1719224337132,7.8711,127.05,126.99,3.0]
[1719224337335,9.44920864,127.04,126.99,3.0]
[1719224337533,0.17,127.03,126.99,3.0]
[1719224337709,0.34,127.03,126.99,3.0]
[1719224338025,0.34,127.03,126.97,3.0]
[1719224338226,0.17,127.03,126.97,3.0]
[1719224338424,0.34,127.04,126.97,3.0]
[1719224339121,0.78758762,126.98,126.97,3.0]
[1719224339740,0.78758762,126.98,126.97,103.0]
[1719224340113,7.702285,127.06,127.0,103.0]
[1719224340636,7.8679,127.1,127.0,103.0]
[1719224340836,7.8679,127.1,127.02,3.0]
[1719224341038,7.702285,127.1,127.02,103.0]
[1719224341235,3.15000864,127.13,127.02,103.0]
[1719224341236,1.57750864,127.11,127.02,103.0]
[1719224341408,9.21337196,127.13,127.04,100.0]
[1719224341613,7.8665,127.12,127.04,103.0]
[1719224341935,9.21337196,127.13,127.02,22.4674]
[1719224341936,1.57750864,127.11,127.02,103.0]
[1719224342133,1.57750864,127.11,127.02,3.0]
[1719224342324,7.8698,127.07,127.02,3.0]
[1719224342521,19.671,127.1,127.02,3.0]
[1719224342842,7.8704,127.06,127.02,3.0]
[1719224343019,0.17,127.05,127.02,3.0]
[1719224343352,1.57750864,127.08,127.02,3.0]
[1719224343518,0.17,127.07,127.02,3.0]
[1719224343936,1.57750864,127.11,127.02,3.0]
[1719224344140,7.8667,127.12,127.04,3.0]
[1719224344316,1.57750864,127.13,127.06,3.0]
[1719224344516,1.57750864,127.13,127.05,100.0]
[1719224344727,15.49813148,127.14,127.06,3.0]
[1719224345038,7.8668,127.14,127.08,3.0]
[1719224345549,7.8657,127.14,127.08,3.0]
[1719224345836,7.8659,127.13,127.08,3.0]
[1719224346045,7.8677,127.11,127.04,3.0]
[1719224346548,1.57750864,127.12,127.04,3.0]
[1719224346723,7.8677,127.11,127.04,3.0]
[1719224346918,0.17,127.1,127.04,3.0]
[1719224347120,7.8692,127.08,127.04,3.0]
[1719224347330,0.34,127.1,127.04,3.0]
[1719224347538,8.2082,127.1,127.04,3.0]
[1719224347745,7.87,127.07,127.02,3.0]
[1719224347932,0.17,127.06,127.02,3.0]
[1719224348141,0.34,127.06,127.02,3.0]
[1719224348328,1.57750864,127.1,127.02,3.0]
[1719224348526,9.44370864,127.13,127.04,103.0]
[1719224348740,1.57750864,127.13,127.04,103.0]
[1719224348951,1.57750864,127.13,127.07,3.0]
[1719224349139,7.8653,127.14,127.07,3.0]
[1719224349315,9.08012805,127.15,127.07,3.0]
[1719224349520,16.94492805,127.15,127.07,3.0]
[1719224349823,16.94492805,127.15,127.09,3.0]
[1719224350141,7.8653,127.14,127.09,3.0]
[1719224350324,1.57750864,127.13,127.06,6.6474]
[1719224350524,7.8667,127.12,127.06,6.6474]
[1719224350939,0.34,127.13,127.06,6.6474]
[1719224351134,9.44300864,127.14,127.06,6.6474]
[1719224351135,0.17,127.12,127.06,6.6474]
[1719224351352,0.17,127.13,127.07,3.0]
[1719224351640,0.17,127.14,127.09,3.0]
[1719224352347,1.74750864,127.14,127.06,22.1565]
[1719224352645,7.8674,127.11,127.06,22.1565]
[1719224352850,0.34,127.1,127.05,3.0]
[1719224353654,0.17,127.11,127.05,3.0]
[1719224353817,0.34,127.11,127.05,3.0]
[1719224354022,9.61410864,127.12,127.05,3.0]
[1719224354221,0.17,127.11,127.05,3.0]
[1719224355341,9.61520864,127.11,127.02,16.8366]
[1719224355642,8.0383,127.1,127.02,16.8366]
[1719224355819,0.17,127.1,127.03,100.0]
[1719224356339,0.34,127.11,127.03,100.0]
[1719224356542,8.2072,127.11,127.03,100.0]
[1719224356744,8.2072,127.11,127.02,16.8366]
[1719224356745,0.34,127.11,127.02,16.8366]
[1719224356922,64.6697,127.1,127.02,16.8366]
[1719224357125,7.8706,127.06,127.02,16.8366]
[1719224357346,8.21,127.07,127.02,16.8366]
[1719224357538,0.17,127.07,127.02,16.8366]
[1719224357738,1.74750864,127.09,127.02,16.8366]
[1719224357739,8.0387,127.09,127.02,16.8366]
[1719224358042,0.17,127.08,127.02,16.8366]
[1719224358349,0.17,127.09,127.02,16.8366]
[1719224358534,8.2084,127.09,127.02,16.8366]
[1719224358737,7.8691,127.08,127.02,16.8366]
[1719224359047,1.57750864,127.14,127.02,116.8366]
[1719224359228,7.8673,127.11,127.03,45.0]
[1719224359438,7.8672,127.11,127.03,45.0]
[1719224359625,7.8678,127.1,127.03,45.0]
[1719224359923,7.8669,127.12,127.04,100.0]
[1719224360123,7.8675,127.11,127.04,100.0]
[1719224360547,7.8679,127.1,127.04,100.0]
[1719224360727,7.8679,127.1,127.03,145.0]
[1719224360929,7.8678,127.1,127.03,145.0]
[1719224361163,7.8694,127.08,127.02,16.8366]
[1719224361331,1.57750864,127.13,127.02,16.8366]
[1719224361332,0.34,127.07,127.02,16.8366]
[1719224361535,8.2097,127.07,127.02,16.8366]
[1719224361926,1.57750864,127.06,126.98,6.1573]
[1719224362130,7.8721,127.04,126.98,6.1573]
[1719224362634,0.17,127.03,126.98,6.1573]
[1719224362852,8.2122,127.03,126.98,6.1573]
[1719224363063,7.8728,127.02,126.97,15.3438]
[1719224363663,0.17,127.01,126.94,6.4283]
[1719224363860,0.17,127.01,126.95,100.0]
[1719224364161,0.17,127.01,126.94,6.4283]
[1719224364532,8.0434,127.01,126.94,6.4283]
[1719224365054,0.17,127.01,126.94,6.4283]
[1719224366249,0.17,127.01,126.93,100.0]
[1719224366453,7.8762,126.97,126.9,100.0]
[1719224366643,46.74750864,127.01,126.9,100.0]
[1719224366644,8.0465,126.96,126.9,100.0]
[1719224366859,0.17,126.96,126.9,100.0]
[1719224367151,0.34,126.97,126.9,100.0]
[1719224367327,1.57750864,126.99,126.9,100.0]
[1719224367526,7.8743,127.0,126.9,100.0]
[1719224367725,0.34,126.99,126.93,100.0]
[1719224367948,7.8727,127.02,126.93,100.0]
[1719224368148,16.9845085,127.04,126.95,100.0]
[1719224368347,9.1128085,127.04,126.95,100.0]
[1719224368546,9.1128085,127.04,126.93,206.4955]
[1719224368759,28.7931085,127.04,126.93,206.4955]
[1719224369056,28.7931085,127.04,126.93,106.4955]
[1719224369237,7.8729,127.02,126.93,106.4955]
[1719224369449,9.45090864,127.01,126.93,106.4955]
[1719224369750,1.57750864,127.03,126.94,100.0]
[1719224369952,8.2131,127.02,126.93,6.4955]
[1719224370557,7.8758,126.97,126.93,6.4955]
[1719224370744,1.57750864,127.01,126.93,6.4955]
[1719224371059,0.34,127.0,126.93,6.4955]
[1719224371558,1.57750864,127.03,126.94,100.0]
[1719224371559,9.44980864,127.03,126.94,100.0]
[1719224371739,9.44980864,127.03,126.93,6.4955]
[1719224371740,7.8734,127.01,126.93,6.4955]
[1719224371937,0.17,127.0,126.93,6.4955]
[1719224372147,7.8735,127.01,126.93,6.4955]
[1719224372350,0.17,127.0,126.93,6.4955]
[1719224372761,0.34,127.0,126.93,6.4955]
[1719224373337,8.214,127.0,126.93,6.4955]
[1719224373963,0.34,127.0,126.93,6.4955]
[1719224374339,1.91750864,127.0,126.93,6.4955]
[1719224374533,8.2142,127.0,126.93,6.4955]
[1719224374741,0.34,127.0,126.93,6.4955]
[1719224375150,1.91750864,127.0,126.92,115.26]
[1719224375355,8.2144,127.0,126.92,15.26]
[1719224375532,8.2144,127.0,126.92,115.26]
[1719224375735,0.34,127.0,126.93,100.0]
[1719224376131,0.34,127.0,126.92,115.26]
[1719224376750,0.17,127.0,126.93,100.0]
[1719224377041,7.874,127.0,126.92,115.26]
[1719224377242,0.17,126.99,126.92,115.26]
[1719224377646,9.62210864,126.99,126.92,15.26]
[1719224377861,0.17,126.98,126.89,106.4925]
[1719224378266,7.8762,126.97,126.89,106.4925]
[1719224378471,0.17,126.96,126.89,106.4925]
[1719224378759,8.217,126.96,126.89,6.4925]
[1719224379254,7.873,127.02,126.92,100.0]
[1719224379458,11.369218,127.04,126.95,100.0]
[1719224379459,12.94672664,127.04,126.95,100.0]
[1719224379653,1.57750864,127.05,126.96,100.0]
[1719224379852,1.57750864,127.05,126.95,100.0]
[1719224380055,24.52986047,127.06,126.97,100.0]
[1719224380267,16.65926047,127.06,126.97,100.0]
[1719224380447,24.52986047,127.06,126.97,100.0]
[1719224380795,7.873,127.02,126.93,100.0]
[1719224380968,7.8736,127.01,126.92,100.0]
[1719224381138,1.57750864,127.05,126.92,100.0]
[1719224381477,7.8736,127.01,126.92,200.0]
[1719224381648,0.17,127.0,126.92,200.0]
[1719224381849,0.34,127.0,126.92,200.0]
[1719224382560,0.17,127.01,126.92,200.0]
[1719224382739,0.17,127.0,126.92,200.0]
[1719224383151,0.17,127.01,126.92,200.0]
[1719224383366,8.2134,127.01,126.92,200.0]
[1719224383550,0.34,127.01,126.92,200.0]
[1719224384177,0.34,127.01,126.93,1.22197307]
[1719224384347,1.57750864,127.04,126.94,100.0]
[1719224384673,1.57750864,127.04,126.95,1.22178055]
[1719224385369,7.8724,127.03,126.95,1.22178055]
[1719224385550,7.8718,127.04,126.95,1.22178055]
[1719224385754,9.44990864,127.03,126.95,1.22178055]
[1719224385951,0.17,127.02,126.95,1.22178055]
[1719224386348,1.74750864,127.02,126.95,1.22178055]
[1719224386550,7.875,126.99,126.9,100.0]
[1719224386974,0.34,126.98,126.9,100.0]
[1719224388368,8.2147,126.99,126.9,100.0]
[1719224390080,7.8752,126.98,126.9,100.0]
[1719224390255,0.17,126.97,126.9,100.0]
[1719224390558,1.57750864,127.02,126.9,100.0]
[1719224390761,7.875,126.99,126.9,100.0]